lending/lending_fUSD_20250920
["ID","MTS","AMOUNT","RATE_DAILY","PERIOD"]
[386582382,1758411044102,-400.0,0.00022188,2]
[386582383,1758411044111,-1828.67,0.00022188,2]
[386582384,1758411044121,-294.506924,0.00022188,7]
[386582385,1758411044130,-151.0,0.00022188,7]
[386582386,1758411044139,-151.0,0.00022188,7]
[386582387,1758411044148,-151.0,0.00022188,7]
[386582388,1758411044160,-4338.52,0.00022188,2]
[386582389,1758411044170,-151.0,0.00022188,7]
[386582390,1758411044180,-400.0,0.00022189,2]
[386582391,1758411044189,-400.0,0.00022189,2]
[386582392,1758411044199,-400.0,0.00022189,2]
[386582393,1758411044208,-400.0,0.00022189,2]
[386582394,1758411044218,-400.0,0.00022189,2]
[386582395,1758411044227,-400.0,0.00022189,2]
[386582396,1758411044237,-400.0,0.00022189,2]
[386582397,1758411044247,-804.04,0.00022189,2]
[386582398,1758411044259,-400.0,0.00022189,2]
[386582399,1758411044268,-400.0,0.00022189,2]
[386582400,1758411044279,-400.0,0.00022189,2]
[386582401,1758411044290,-400.0,0.00022189,2]
[386582402,1758411044300,-400.0,0.00022189,2]
[386582403,1758411044311,-400.0,0.00022189,2]
[386582404,1758411044322,-400.0,0.00022189,2]
[386582405,1758411044333,-1361.22,0.00022189,2]
[386582406,1758411044346,-400.0,0.00022189,2]
[386582407,1758411044357,-400.0,0.00022189,2]
[386582408,1758411044367,-400.0,0.00022189,2]
[386582409,1758411044377,-323.14472326,0.00022189,2]
[386582410,1758411044389,-400.0,0.00022189,2]
[386582411,1758411044400,-400.0,0.00022189,2]
[386582412,1758411044410,-491.8,0.00022189,2]
[386582413,1758411044421,-505.35,0.00022189,2]
[386582414,1758411044430,-400.0,0.00022189,2]
[386582415,1758411044442,-2099.55,0.00022189,2]
[386582416,1758411044451,-926.44,0.00022189,2]
[386582417,1758411044461,-400.0,0.00022189,2]
[386582418,1758411044471,-1744.9,0.00022189,2]
[386582419,1758411044481,-400.0,0.00022189,2]
[386582420,1758411044491,-3144.51,0.00022189,2]
[386582421,1758411044501,-506.29,0.00022189,2]
[386582422,1758411044511,-647.58,0.00022189,2]
[386582423,1758411044522,-400.0,0.00022189,2]
[386582424,1758411044531,-1896.02,0.00022189,2]
[386582425,1758411044541,-1417.89,0.00022189,2]
[386582426,1758411044551,-622.74,0.00022189,2]
[386582427,1758411044561,-1888.15,0.00022189,2]
[386582428,1758411044570,-400.0,0.00022189,2]
[386582429,1758411044580,-1607.87,0.00022189,2]
[386582430,1758411044590,-1091.76,0.00022189,2]
[386582431,1758411044600,-1688.66,0.00022189,2]
[386582432,1758411044610,-1874.59,0.00022189,2]
[386582433,1758411044619,-1208.16,0.00022189,2]
[386582434,1758411044629,-400.0,0.00022189,2]
[386582435,1758411044640,-400.0,0.00022189,2]
[386582436,1758411044650,-809.74,0.00022189,2]
[386582437,1758411044659,-428.95,0.00022189,2]
[386582438,1758411044669,-400.0,0.00022189,2]
[386582439,1758411044679,-1589.58,0.00022189,2]
[386582440,1758411044688,-4454.03,0.00022189,2]
[386582441,1758411044698,-400.0,0.00022189,2]
[386582442,1758411044708,-1378.3,0.00022189,2]
[386582443,1758411044717,-756.29,0.00022189,2]
[386582444,1758411044727,-2764.59,0.00022189,2]
[386582445,1758411044736,-1848.95,0.00022189,2]
[386582446,1758411044746,-1405.15,0.00022189,2]
[386582447,1758411044755,-497.27,0.00022189,2]
[386582448,1758411044765,-1115.22,0.00022189,2]
[386582449,1758411044775,-400.0,0.00022189,2]
[386582450,1758411044784,-1064.12,0.00022189,2]
[386582451,1758411044794,-1265.42,0.00022189,2]
[386582452,1758411044804,-1982.28,0.00022189,2]
[386582453,1758411044814,-807.03,0.00022189,2]
[386582454,1758411044824,-400.0,0.00022189,2]
[386582455,1758411044834,-2024.1,0.00022189,2]
[386582456,1758411044843,-778.85,0.00022189,2]
[386582457,1758411044853,-400.0,0.00022189,2]
[386582458,1758411044863,-400.0,0.00022189,2]
[386582459,1758411044873,-400.0,0.00022189,2]
[386582460,1758411044882,-6623.458645,0.00022189,2]
[386582461,1758411044891,-2075.63,0.00022189,2]
[386582462,1758411044901,-167.870081,0.00022189,2]
[386582463,1758411044911,-1362.62,0.00022189,2]
[386582464,1758411044921,-158.056562,0.00022189,2]
[386582465,1758411044931,-159.74412,0.00022189,2]
[386582466,1758411044941,-896.717248,0.00022189,2]
[386582467,1758411044951,-400.0,0.00022189,2]
[386582468,1758411044960,-6546.199088,0.00022189,2]
[386582469,1758411044970,-400.0,0.00022189,2]
[386582470,1758411044979,-1590.96,0.00022189,2]
[386582471,1758411044990,-400.0,0.00022189,2]
[386582472,1758411045000,-825.66,0.00022189,2]
[386582473,1758411045010,-10521.07,0.00022189,2]
[386582474,1758411045020,-1133.66,0.00022189,2]
[386582475,1758411045030,-1489.62,0.00022189,2]
[386582476,1758411045039,-1816.89,0.00022189,2]
[386582477,1758411045049,-400.0,0.00022189,2]
[386582478,1758411045059,-699.21,0.00022189,2]
[386582479,1758411045068,-400.0,0.00022189,2]
[386582480,1758411045078,-433.96,0.00022189,2]
[386582481,1758411045088,-497.85,0.00022189,2]
[386582482,1758411045103,-1498.85,0.00022189,2]
[386582483,1758411045112,-501.46,0.00022189,2]
[386582484,1758411045122,-1445.78,0.00022189,2]
[386582485,1758411045132,-1348.83,0.00022189,2]
[386582486,1758411045142,-400.0,0.00022189,2]
[386582487,1758411045152,-2422.53,0.00022189,2]
[386582488,1758411045162,-598.09,0.00022189,2]
[386582489,1758411045174,-409.78,0.00022189,2]
[386582490,1758411045183,-1497.89,0.00022189,2]
[386582491,1758411045194,-477.58,0.00022189,2]
[386582492,1758411045203,-1589.08,0.00022189,2]
[386582493,1758411045213,-860.36,0.00022189,2]
[386582494,1758411045223,-400.0,0.00022189,2]
[386582495,1758411045232,-400.0,0.00022189,2]
[386582496,1758411045242,-1089.9,0.00022189,2]
[386582497,1758411045252,-551.45,0.00022189,2]
[386582498,1758411045262,-1448.18,0.00022189,2]
[386582499,1758411045271,-169.76707319,0.00022189,2]
[386582500,1758411045280,-1395.41,0.00022189,2]
[386582501,1758411045290,-1170.95,0.00022189,2]
[386582502,1758411045299,-2415.63,0.00022189,2]
[386582503,1758411045308,-1738.63,0.00022189,2]
[386582504,1758411045318,-1849.7,0.00022189,2]
[386582505,1758411045327,-400.0,0.00022189,2]
[386582506,1758411045337,-534.78423036,0.00022189,2]
[386582507,1758411045347,-400.0,0.00022189,2]
[386582508,1758411045356,-1802.14,0.00022189,2]
[386582509,1758411045366,-1480.81,0.00022189,2]
[386582510,1758411045375,-400.0,0.00022189,2]
[386582511,1758411045386,-1713.45,0.00022189,2]
[386582512,1758411045396,-400.0,0.00022189,2]
[386582513,1758411045405,-400.0,0.00022189,2]
[386582514,1758411045415,-400.0,0.00022189,2]
[386582515,1758411045424,-400.0,0.00022189,2]
[386582516,1758411045433,-400.0,0.00022189,2]
[386582517,1758411045443,-182.492344,0.00022189,2]
[386582518,1758411045452,-400.0,0.00022189,2]
[386582519,1758411045462,-1393.23,0.00022189,2]
[386582520,1758411045472,-400.0,0.00022189,2]
[386582521,1758411045481,-474.14,0.00022189,2]
[386582522,1758411045491,-4674.98,0.00022189,2]
[386582523,1758411045501,-400.0,0.00022189,2]
[386582524,1758411045511,-400.0,0.00022189,2]
[386582525,1758411045520,-1576.15,0.00022189,2]
[386582526,1758411045530,-400.0,0.00022189,2]
[386582527,1758411045540,-400.0,0.00022189,2]
[386582528,1758411045550,-1261.46,0.00022189,2]
[386582529,1758411045559,-400.0,0.00022189,2]
[386582530,1758411045569,-400.0,0.00022189,2]
[386582531,1758411045578,-403.88,0.00022189,2]
[386582532,1758411045587,-400.0,0.00022189,2]
[386582533,1758411045597,-400.0,0.00022189,2]
[386582534,1758411045607,-400.0,0.00022189,2]
[386582535,1758411045616,-400.0,0.00022189,2]
[386582536,1758411045627,-2517.53,0.00022189,2]
[386582537,1758411045637,-579.23,0.00022189,2]
[386582538,1758411045646,-400.0,0.00022189,2]
[386582539,1758411045657,-1151.73,0.00022189,2]
[386582540,1758411045667,-400.0,0.00022189,2]
[386582541,1758411045676,-400.0,0.00022189,2]
[386582542,1758411045685,-1217.05,0.00022189,2]
[386582543,1758411045695,-1634.57,0.00022189,2]
[386582544,1758411045705,-2339.4,0.00022189,2]
[386582545,1758411045715,-1609.71,0.00022189,2]
[386582546,1758411045724,-1594.78,0.00022189,2]
[386582547,1758411045735,-566.49,0.00022189,2]
[386582548,1758411045744,-1488.14,0.00022189,2]
[386582549,1758411045754,-400.0,0.00022189,2]
[386582550,1758411045764,-1427.2,0.00022189,2]
[386582551,1758411045774,-2965.38,0.00022189,2]
[386582552,1758411045783,-1122.29,0.00022189,2]
[386582553,1758411045793,-1612.07,0.00022189,2]
[386582554,1758411045803,-400.0,0.00022189,2]
[386582555,1758411045812,-1554.13,0.00022189,2]
[386582556,1758411045823,-1889.22,0.00022189,2]
[386582557,1758411045832,-422.21,0.00022189,2]
[386582558,1758411045843,-1626.96,0.00022189,2]
[386582559,1758411045854,-758.73,0.00022189,2]
[386582560,1758411045864,-2637.77,0.00022189,2]
[386582561,1758411045874,-2440.55,0.00022189,2]
[386582562,1758411045884,-1073.76,0.00022189,2]
[386582563,1758411045894,-400.0,0.00022189,2]
[386582564,1758411045903,-1463.93,0.00022189,2]
[386582565,1758411045912,-400.0,0.00022189,2]
[386582566,1758411045922,-4758.73,0.00022189,2]
[386582567,1758411045932,-739.58,0.00022189,2]
[386582568,1758411045941,-155.784549,0.00022189,2]
[386582569,1758411045951,-163.243635,0.00022189,2]
[386582570,1758411045960,-165.650782,0.00022189,2]
[386582571,1758411045969,-167.985065,0.00022189,2]
[386582572,1758411045979,-1895.35,0.00022189,2]
[386582573,1758411045989,-400.0,0.00022189,2]
[386582574,1758411045998,-1309.63,0.00022189,2]
[386582575,1758411046008,-460.55,0.00022189,2]
[386582576,1758411046017,-13160.01,0.00022189,2]
[386582577,1758411046026,-1213.84,0.00022189,2]
[386582578,1758411046036,-1507.36,0.00022189,2]
[386582579,1758411046045,-1931.19,0.00022189,2]
[386582580,1758411046055,-458.97,0.00022189,2]
[386582581,1758411046065,-2177.8,0.00022189,2]
[386582582,1758411046074,-1567.49,0.00022189,2]
[386582583,1758411046084,-400.0,0.00022189,2]
[386582584,1758411046096,-400.0,0.00022189,2]
[386582585,1758411046106,-400.0,0.00022189,2]
[386582586,1758411046115,-854.0,0.00022189,2]
[386582587,1758411046124,-400.0,0.00022189,2]
[386582588,1758411046133,-1619.08,0.00022189,2]
[386582589,1758411046232,-400.0,0.00022189,2]
[386582590,1758411046242,-400.0,0.00022189,2]
[386582591,1758411046252,-400.0,0.0002219,2]
[386582592,1758411046261,-854.19,0.0002219,2]
[386582593,1758411046270,-500.0,0.0002219,2]
[386582594,1758411046280,-432.06,0.0002219,2]
[386582595,1758411046289,-400.0,0.0002219,2]
[386582596,1758411046298,-400.0,0.0002219,2]
[386582597,1758411046308,-400.0,0.0002219,2]
[386582598,1758411046317,-400.0,0.0002219,2]
[386582599,1758411046327,-400.0,0.0002219,2]
[386582600,1758411046337,-400.0,0.0002219,2]
[386582601,1758411046346,-400.0,0.0002219,2]
[386582602,1758411046355,-400.0,0.0002219,2]
[386582603,1758411046365,-400.0,0.0002219,2]
[386582604,1758411046374,-985.91,0.0002219,2]
[386582605,1758411046384,-656.77,0.0002219,2]
[386582606,1758411046392,-400.0,0.0002219,2]
[386582607,1758411046402,-400.0,0.0002219,2]
[386582608,1758411046411,-721.71,0.0002219,2]
[386582609,1758411046421,-531.57,0.0002219,2]
[386582610,1758411046431,-549.75,0.0002219,2]
[386582611,1758411046441,-400.0,0.0002219,2]
[386582612,1758411046452,-400.0,0.0002219,2]
[386582613,1758411046463,-571.16,0.0002219,2]
[386582614,1758411046472,-400.0,0.0002219,2]
[386582615,1758411046482,-400.0,0.0002219,2]
[386582616,1758411046492,-528.21,0.0002219,2]
[386582617,1758411046501,-491.36,0.0002219,2]
[386582618,1758411046510,-400.0,0.0002219,2]
[386582619,1758411046519,-440.54,0.0002219,2]
[386582620,1758411046529,-400.0,0.0002219,2]
[386582621,1758411046538,-400.0,0.0002219,2]
[386582622,1758411046548,-400.0,0.0002219,2]
[386582623,1758411046558,-400.0,0.0002219,2]
[386582624,1758411046568,-483.57,0.0002219,2]
[386582625,1758411046578,-400.0,0.0002219,2]
[386582626,1758411046587,-400.0,0.0002219,2]
[386582627,1758411046596,-400.0,0.0002219,2]
[386582628,1758411046606,-930.44,0.0002219,2]
[386582629,1758411046615,-400.0,0.0002219,2]
[386582630,1758411046624,-400.0,0.0002219,2]
[386582631,1758411046634,-400.0,0.0002219,2]
[386582632,1758411046643,-400.0,0.0002219,2]
[386582633,1758411046653,-400.0,0.0002219,2]
[386582634,1758411046662,-545.4,0.0002219,2]
[386582635,1758411046671,-527.24,0.0002219,2]
[386582636,1758411046681,-400.0,0.0002219,2]
[386582637,1758411046690,-1149.03,0.0002219,2]
[386582638,1758411046699,-400.0,0.0002219,2]
[386582639,1758411046709,-400.0,0.0002219,2]
[386582640,1758411046718,-400.0,0.0002219,2]
[386582641,1758411046728,-400.0,0.0002219,2]
[386582642,1758411046737,-400.0,0.0002219,2]
[386582643,1758411046747,-570.05,0.0002219,2]
[386582644,1758411046756,-400.0,0.0002219,2]
[386582645,1758411046766,-400.0,0.0002219,2]
[386582646,1758411046776,-524.41,0.0002219,2]
[386582647,1758411046786,-418.18,0.0002219,2]
[386582648,1758411046796,-400.0,0.0002219,2]
[386582649,1758411046805,-400.0,0.0002219,2]
[386582650,1758411046815,-400.0,0.0002219,2]
[386582651,1758411046825,-400.0,0.0002219,2]
[386582652,1758411046835,-441.97,0.0002219,2]
[386582653,1758411046845,-400.0,0.0002219,2]
[386582654,1758411046855,-470.71,0.0002219,2]
[386582655,1758411046865,-400.0,0.0002219,2]
[386582656,1758411046875,-878.55,0.0002219,2]
[386582657,1758411046885,-681.86,0.0002219,2]
[386582658,1758411046895,-400.0,0.0002219,2]
[386582659,1758411046904,-480.84,0.0002219,2]
[386582660,1758411046914,-594.33,0.0002219,2]
[386582661,1758411046924,-1183.28,0.0002219,2]
[386582662,1758411046933,-1053.83,0.0002219,2]
[386582663,1758411046942,-400.0,0.0002219,2]
[386582664,1758411046951,-496.62,0.0002219,2]
[386582665,1758411046961,-455.21,0.0002219,2]
[386582666,1758411046971,-564.11,0.0002219,2]
[386582667,1758411046980,-645.49,0.0002219,2]
[386582668,1758411046990,-598.96,0.0002219,2]
[386582669,1758411046999,-400.0,0.0002219,2]
[386582670,1758411047008,-400.0,0.0002219,2]
[386582671,1758411047018,-417.74,0.0002219,2]
[386582672,1758411047027,-400.0,0.0002219,2]
[386582673,1758411047036,-537.04,0.0002219,2]
[386582674,1758411047045,-400.0,0.0002219,2]
[386582675,1758411047055,-403.86,0.0002219,2]
[386582676,1758411047064,-400.0,0.0002219,2]
[386582677,1758411047074,-439.97,0.0002219,2]
[386582678,1758411047083,-400.0,0.0002219,2]
[386582679,1758411047094,-400.0,0.0002219,2]
[386582680,1758411047105,-400.0,0.0002219,2]
[386582681,1758411047116,-552.39,0.0002219,2]
[386582682,1758411047125,-400.0,0.0002219,2]
[386582683,1758411047136,-400.0,0.0002219,2]
[386582684,1758411047146,-400.0,0.0002219,2]
[386582685,1758411047157,-400.0,0.0002219,2]
[386582686,1758411047169,-400.0,0.0002219,2]
[386582687,1758411047178,-316.54695459,0.0002219,2]
[386582688,1758411047187,-400.0,0.0002219,2]
[386582689,1758411047197,-400.0,0.0002219,2]
[386582690,1758411047207,-400.0,0.0002219,2]
[386582691,1758411047216,-400.0,0.0002219,2]
[386582692,1758411047226,-400.0,0.0002219,2]
[386582693,1758411047235,-500.06,0.0002219,2]
[386582694,1758411047245,-400.0,0.0002219,2]
[386582695,1758411047255,-400.0,0.0002219,2]
[386582696,1758411047265,-400.0,0.0002219,2]
[386582697,1758411047275,-400.0,0.0002219,2]
[386582698,1758411047285,-400.0,0.0002219,2]
[386582699,1758411047295,-400.0,0.0002219,2]
[386582700,1758411047304,-400.0,0.0002219,2]
[386582701,1758411047313,-400.0,0.0002219,2]
[386582702,1758411047323,-419.13381477,0.0002219,2]
[386582703,1758411047332,-469.04,0.0002219,2]
[386582704,1758411047342,-400.0,0.0002219,2]
[386582705,1758411047351,-400.0,0.0002219,2]
[386582706,1758411047361,-530.59,0.0002219,2]
[386582707,1758411047370,-400.0,0.0002219,2]
[386582708,1758411047379,-405.15616309,0.0002219,2]
[386582709,1758411047389,-498.67,0.0002219,2]
[386582710,1758411047399,-400.0,0.0002219,2]
[386582711,1758411047408,-400.0,0.0002219,2]
[386582712,1758411047418,-980.36,0.0002219,2]
[386582713,1758411047427,-408.25579637,0.0002219,2]
[386582714,1758411047436,-400.0,0.0002219,2]
[386582715,1758411047446,-400.0,0.0002219,2]
[386582716,1758411047455,-400.0,0.0002219,2]
[386582717,1758411047464,-400.0,0.0002219,2]
[386582718,1758411047474,-400.0,0.0002219,2]
[386582719,1758411047483,-400.0,0.0002219,2]
[386582720,1758411047493,-400.0,0.0002219,2]
[386582721,1758411047502,-400.0,0.0002219,2]
[386582722,1758411047511,-400.0,0.0002219,2]
[386582723,1758411047521,-419.91,0.0002219,2]
[386582724,1758411047530,-400.0,0.0002219,2]
[386582725,1758411047540,-400.0,0.0002219,2]
[386582726,1758411047549,-400.0,0.0002219,2]
[386582727,1758411047559,-661.8,0.0002219,2]
[386582728,1758411047568,-774.81,0.0002219,2]
[386582729,1758411047578,-425.74235186,0.0002219,2]
[386582730,1758411047588,-402.58586695,0.0002219,2]
[386582731,1758411047598,-400.0,0.0002219,2]
[386582732,1758411047608,-400.0,0.0002219,2]
[386582733,1758411047619,-400.0,0.0002219,2]
[386582734,1758411047631,-400.0,0.0002219,2]
[386582735,1758411047642,-400.0,0.0002219,2]
[386582736,1758411047652,-400.0,0.0002219,2]
[386582737,1758411047661,-401.57351922,0.0002219,2]
[386582738,1758411047671,-457.64,0.0002219,2]
[386582739,1758411047682,-400.0,0.0002219,2]
[386582740,1758411047691,-400.0,0.0002219,2]
[386582741,1758411047700,-400.0,0.0002219,2]
[386582742,1758411047712,-400.0,0.0002219,2]
[386582743,1758411047723,-448.38,0.0002219,2]
[386582744,1758411047733,-507.99,0.0002219,2]
[386582745,1758411047743,-400.0,0.0002219,2]
[386582746,1758411047753,-400.0,0.0002219,2]
[386582747,1758411047762,-400.0,0.0002219,2]
[386582748,1758411047772,-400.0,0.0002219,2]
[386582749,1758411047782,-442.9,0.0002219,2]
[386582750,1758411047791,-400.0,0.0002219,2]
[386582751,1758411047801,-400.0,0.0002219,2]
[386582752,1758411047811,-819.83,0.0002219,2]
[386582753,1758411047820,-400.0,0.0002219,2]
[386582754,1758411047829,-400.0,0.0002219,2]
[386582755,1758411047838,-400.0,0.0002219,2]
[386582756,1758411047848,-550.43,0.0002219,2]
[386582757,1758411047858,-400.0,0.0002219,2]
[386582758,1758411047867,-400.0,0.0002219,2]
[386582759,1758411047877,-1180.28,0.0002219,2]
[386582760,1758411047886,-400.0,0.0002219,2]
[386582761,1758411047896,-400.0,0.0002219,2]
[386582762,1758411047905,-489.16,0.0002219,2]
[386582763,1758411047915,-400.0,0.0002219,2]
[386582764,1758411047924,-717.51,0.0002219,2]
[386582765,1758411047934,-400.0,0.0002219,2]
[386582766,1758411047943,-662.56,0.0002219,2]
[386582767,1758411047952,-165.120495,0.0002219,2]
[386582768,1758411047961,-400.0,0.0002219,2]
[386582769,1758411047970,-620.67,0.0002219,2]
[386582770,1758411047980,-400.0,0.0002219,2]
[386582771,1758411047989,-400.0,0.0002219,2]
[386582772,1758411047999,-400.0,0.0002219,2]
[386582773,1758411048008,-1448.23,0.0002219,2]
[386582774,1758411048018,-400.0,0.0002219,2]
[386582775,1758411048027,-400.0,0.0002219,2]
[386582776,1758411048036,-400.0,0.0002219,2]
[386582777,1758411048046,-400.0,0.0002219,2]
[386582778,1758411048055,-400.0,0.0002219,2]
[386582779,1758411048064,-494.35,0.0002219,2]
[386582780,1758411048074,-400.0,0.0002219,2]
[386582781,1758411048083,-400.0,0.0002219,2]
[386582782,1758411048092,-400.0,0.0002219,2]
[386582783,1758411048103,-506.29,0.0002219,2]
[386582784,1758411048113,-503.56,0.0002219,2]
[386582785,1758411048123,-400.0,0.0002219,2]
[386582786,1758411048132,-1018.85,0.0002219,2]
[386582787,1758411048142,-400.0,0.0002219,2]
[386582788,1758411048151,-400.0,0.0002219,2]
[386582789,1758411048161,-400.0,0.0002219,2]
[386582790,1758411048170,-400.0,0.0002219,2]
[386582791,1758411048180,-1177.29,0.0002219,2]
[386582792,1758411048190,-400.0,0.0002219,2]
[386582793,1758411048200,-400.0,0.0002219,2]
[386582794,1758411048209,-703.39,0.0002219,2]
[386582795,1758411048218,-491.97,0.0002219,2]
[386582796,1758411048228,-400.0,0.0002219,2]
[386582797,1758411048239,-400.0,0.0002219,2]
[386582798,1758411048248,-560.72,0.0002219,2]
[386582799,1758411048258,-954.57,0.0002219,2]
[386582800,1758411048268,-400.0,0.0002219,2]
[386582801,1758411048277,-475.33,0.0002219,2]
[386582802,1758411048287,-400.0,0.0002219,2]
[386582803,1758411048296,-400.0,0.0002219,2]
[386582804,1758411048306,-500.0,0.0002219,2]
[386582805,1758411048316,-400.0,0.0002219,2]
[386582806,1758411048327,-400.0,0.0002219,2]
[386582807,1758411048337,-488.85,0.0002219,2]
[386582808,1758411048347,-400.0,0.0002219,2]
[386582809,1758411048356,-545.4,0.0002219,2]
[386582810,1758411048366,-400.0,0.0002219,2]
[386582811,1758411048376,-400.0,0.0002219,2]
[386582812,1758411048385,-402.88612529,0.0002219,2]
[386582813,1758411048395,-400.0,0.0002219,2]
[386582814,1758411048405,-483.7,0.0002219,2]
[386582815,1758411048414,-424.28,0.0002219,2]
[386582816,1758411048428,-400.0,0.0002219,2]
[386582817,1758411048437,-400.0,0.0002219,2]
[386582818,1758411048447,-500.0,0.0002219,2]
[386582819,1758411048457,-400.0,0.0002219,2]
[386582820,1758411048467,-1186.43,0.0002219,2]
[386582821,1758411048477,-400.0,0.0002219,2]
[386582822,1758411048487,-428.03,0.0002219,2]
[386582823,1758411048496,-400.0,0.0002219,2]
[386582824,1758411048506,-400.0,0.0002219,2]
[386582825,1758411048515,-400.0,0.0002219,2]
[386582826,1758411048525,-400.0,0.0002219,2]
[386582827,1758411048535,-400.0,0.0002219,2]
[386582828,1758411048545,-400.0,0.0002219,2]
[386582829,1758411048554,-400.0,0.0002219,2]
[386582830,1758411048563,-400.0,0.0002219,2]
[386582831,1758411048573,-549.99,0.0002219,2]
[386582832,1758411048582,-606.93,0.0002219,2]
[386582833,1758411048592,-400.0,0.0002219,2]
[386582834,1758411048602,-400.0,0.0002219,2]
[386582835,1758411048611,-400.0,0.0002219,2]
[386582836,1758411048621,-583.37,0.0002219,2]
[386582837,1758411048630,-400.0,0.0002219,2]
[386582838,1758411048640,-578.4,0.0002219,2]
[386582839,1758411048649,-400.0,0.0002219,2]
[386582840,1758411048659,-400.0,0.0002219,2]
[386582841,1758411048669,-400.0,0.0002219,2]
[386582842,1758411048679,-400.0,0.0002219,2]
[386582843,1758411048688,-400.0,0.0002219,2]
[386582844,1758411048698,-1000.0,0.0002219,2]
[386582845,1758411048708,-400.0,0.0002219,2]
[386582846,1758411048717,-400.0,0.0002219,2]
[386582847,1758411048727,-1276.42,0.0002219,2]
[386582848,1758411048737,-568.23,0.0002219,2]
[386582849,1758411048747,-400.0,0.0002219,2]
[386582850,1758411048758,-400.0,0.0002219,2]
[386582851,1758411048767,-400.0,0.0002219,2]
[386582852,1758411048777,-400.0,0.0002219,2]
[386582853,1758411048787,-500.0,0.0002219,2]
[386582854,1758411048797,-400.0,0.0002219,2]
[386582855,1758411048807,-400.0,0.0002219,2]
[386582856,1758411048817,-400.0,0.0002219,2]
[386582857,1758411048826,-400.0,0.0002219,2]
[386582858,1758411048836,-400.0,0.0002219,2]
[386582859,1758411048847,-400.0,0.0002219,2]
[386582860,1758411048857,-400.0,0.0002219,2]
[386582861,1758411048867,-400.0,0.0002219,2]
[386582862,1758411048877,-400.0,0.0002219,2]
[386582863,1758411048887,-400.0,0.0002219,2]
[386582864,1758411048897,-400.0,0.0002219,2]
[386582865,1758411048907,-400.0,0.0002219,2]
[386582866,1758411048918,-1011.08,0.0002219,2]
[386582867,1758411048928,-613.51,0.0002219,2]
[386582868,1758411048939,-400.0,0.0002219,2]
[386582869,1758411048949,-400.0,0.0002219,2]
[386582870,1758411048958,-472.79,0.0002219,2]
[386582871,1758411048968,-400.0,0.0002219,2]
[386582872,1758411048978,-400.0,0.0002219,2]
[386582873,1758411048988,-400.0,0.0002219,2]
[386582874,1758411048999,-400.0,0.0002219,2]
[386582875,1758411049008,-400.0,0.0002219,2]
[386582876,1758411049019,-400.0,0.0002219,2]
[386582877,1758411049029,-400.0,0.0002219,2]
[386582878,1758411049040,-400.0,0.0002219,2]
[386582879,1758411049050,-400.0,0.0002219,2]
[386582880,1758411049060,-431.21,0.0002219,2]
[386582881,1758411049069,-400.0,0.0002219,2]